bitfinex/quotes_ETHUSD_20250824
["timestamp","ask_amount","ask_price","bid_price","bid_amount"]
[1756018578672,0.4479,4770.6,4770.5,5.61521632]
[1756018578888,0.7403,4770.6,4770.5,5.61521632]
[1756018579236,0.7403,4770.6,4770.3,0.001]
[1756018579370,0.1048,4770.4,4770.3,0.001]
[1756018579568,0.4004,4770.4,4770.3,0.001]
[1756018579968,0.8451,4770.4,4770.3,2.09730421]
[1756018580665,0.8451,4770.4,4770.3,0.001]
[1756018584229,0.8451,4770.4,4770.3,2.09730421]
[1756018588218,0.8451,4770.4,4770.3,5.61330421]
[1756018589708,0.8451,4770.4,4770.3,3.517]
[1756018589909,0.8451,4770.4,4770.3,0.001]
[1756018605737,0.97463953,4770.4,4770.3,0.001]
[1756018607156,1.50742283,4770.4,4770.3,0.001]
[1756018607357,1.05867353,4770.4,4770.3,0.001]
[1756018607557,1.50742283,4770.4,4770.3,0.001]
[1756018607754,1.05867353,4770.4,4770.3,0.001]
[1756018608057,1.50742283,4770.4,4770.3,0.001]
[1756018608458,1.05867353,4770.4,4770.3,0.001]
[1756018608662,1.50742283,4770.4,4770.3,0.001]
[1756018609566,1.05867353,4770.4,4770.3,0.001]
[1756018617668,0.31837353,4770.4,4770.3,0.001]
[1756018617851,4.56507353,4770.4,4770.3,0.001]
[1756018620055,5.01363927,4770.4,4770.3,0.001]
[1756018623347,5.01163927,4770.4,4770.3,0.001]
[1756018634990,10.76789954,4770.4,4770.3,0.001]
[1756018635559,11.70946519,4770.4,4770.3,0.001]
[1756018635778,2.75634816,4770.2,4770.1,0.041]
[1756018635977,19.86376214,4770.2,4770.1,0.041]
[1756018636154,20.29266214,4770.2,4770.1,0.041]
[1756018636473,20.37671314,4770.2,4770.1,0.041]
[1756018639406,13.98883596,4769.2,4768.1,0.04]
[1756018639722,26.70124704,4769.2,4768.1,0.04]
[1756018640013,27.24474704,4769.2,4768.1,0.04]
[1756018640215,27.28985117,4769.2,4768.1,0.04]
[1756018640624,23.78385117,4769.2,4768.1,0.04]
[1756018640983,28.72985117,4769.2,4768.1,0.04]
[1756018641180,30.34827799,4769.2,4768.1,0.04]
[1756018641384,29.22868599,4769.2,4768.1,0.04]
[1756018642019,29.22868599,4769.2,4769.1,1e-08]
[1756018642222,28.62505117,4769.2,4769.1,1e-08]
[1756018642429,29.67391228,4769.2,4769.1,1e-08]
[1756018642594,26.16791228,4769.2,4769.1,1e-08]
[1756018642791,29.67391228,4769.2,4769.1,1e-08]
[1756018643043,28.62505117,4769.2,4769.1,1e-08]
[1756018643326,28.95329032,4769.2,4769.1,1e-08]
[1756018643489,29.51141005,4769.2,4769.1,1e-08]
[1756018644294,28.07141005,4769.2,4769.1,1e-08]
[1756018644896,27.51329032,4769.2,4769.1,1e-08]
[1756018645101,0.66,4768.6,4766.8,0.02]
[1756018645300,2.09766739,4767.2,4766.8,0.02]
[1756018645544,10.24966739,4767.2,4766.8,0.02]
[1756018645857,5.02541793,4767.2,4766.8,0.02]
[1756018645999,5.56441793,4767.2,4766.8,0.02]
[1756018646335,3.539,4767.3,4766.8,0.02]
[1756018646499,3.541,4767.5,4766.8,0.02]
[1756018647125,3.541,4767.5,4766.9,2.09776153]
[1756018647442,3.541,4767.5,4767.2,0.21577615]
[1756018649309,0.630562,4767.9,4767.2,0.21577615]
[1756018649514,0.630562,4767.9,4766.8,0.02]
[1756018649949,2.09757274,4767.5,4766.8,0.02]
[1756018650118,3.54,4767.4,4766.8,0.02]
[1756018650326,1.613,4767.3,4766.8,0.02]
[1756018650525,3.541,4767.2,4766.8,0.02]
[1756018650849,4.34127008,4767.3,4766.8,0.02]
[1756018651051,3.541,4767.2,4766.8,0.02]
[1756018651454,6.38126739,4767.2,4766.8,0.02]
[1756018651762,7.19051805,4767.2,4766.8,0.02]
[1756018652320,1.65665066,4767.2,4766.8,0.02]
[1756018652516,4.89275066,4767.2,4766.8,0.02]
[1756018652848,4.167593,4767.2,4766.8,0.02]
[1756018653025,6.26526039,4767.2,4766.8,0.02]
[1756018653226,6.89747246,4767.2,4766.8,0.02]
[1756018653723,6.89647246,4767.2,4766.8,0.02]
[1756018655068,4.49490507,4767.2,4766.8,0.02]
[1756018655249,0.51720507,4767.2,4766.8,0.02]
[1756018655659,4.05520507,4767.2,4766.8,0.02]
[1756018656049,0.51720507,4767.2,4766.8,0.02]
[1756018656232,4.05520507,4767.2,4766.8,0.02]
[1756018656858,0.51720507,4767.2,4766.8,0.02]
[1756018657058,4.05520507,4767.2,4767.1,0.041]
[1756018658876,4.05620507,4767.2,4767.1,0.041]
[1756018659247,0.51720507,4767.2,4767.1,0.041]
[1756018659448,4.05420507,4767.2,4767.1,0.041]
[1756018661078,7.46119297,4767.2,4767.1,0.041]
[1756018661455,7.1328809,4767.2,4767.1,0.041]
[1756018663738,3.5958809,4767.2,4767.1,0.041]
[1756018663940,7.1338809,4767.2,4767.1,0.041]
[1756018664680,7.46219811,4767.2,4767.1,0.041]
[1756018665250,7.90910984,4767.2,4767.1,0.041]
[1756018666575,4.37110984,4767.2,4767.1,0.041]
[1756018667253,6.59878933,4767.2,4767.1,0.041]
[1756018667451,7.34138933,4767.2,4767.1,0.041]
[1756018668993,7.01307212,4767.2,4767.1,0.041]
[1756018669890,3.03737212,4767.2,4767.1,0.041]
[1756018670097,4.63780473,4767.2,4767.1,0.041]
[1756018670275,6.73547212,4767.2,4767.1,0.041]
[1756018670671,4.17080473,4767.2,4767.1,0.041]
[1756018671363,11.63492745,4767.2,4767.1,0.041]
[1756018671562,12.19304718,4767.2,4767.1,0.041]
[1756018672761,12.52136012,4767.2,4767.1,0.041]
[1756018672962,12.05736012,4767.2,4767.1,0.041]
[1756018673156,12.52436012,4767.2,4767.1,0.041]
[1756018674494,8.98636012,4767.2,4767.1,0.041]
[1756018674672,12.52336012,4767.2,4767.1,0.041]
[1756018675177,13.18336012,4767.2,4767.1,0.041]
[1756018675904,13.18650873,4767.2,4767.1,0.041]
[1756018676764,21.41855697,4767.2,4767.1,0.041]
[1756018678305,20.85845693,4767.2,4767.1,0.041]
[1756018678602,21.4167847,4767.2,4767.1,0.041]
[1756018679312,20.85645693,4767.2,4767.1,0.041]
[1756018680222,12.62440869,4767.2,4767.1,0.041]
[1756018680521,20.85645693,4767.2,4767.1,0.041]
[1756018682119,20.52614399,4767.2,4767.1,0.041]
[1756018682997,12.29409575,4767.2,4767.1,0.041]
[1756018683326,21.086682,4767.2,4767.1,0.041]
[1756018683530,21.085682,4767.2,4767.1,0.041]
[1756018684591,17.553682,4767.2,4767.1,0.041]
[1756018684788,21.084682,4767.2,4767.1,0.041]
[1756018685449,8.33151114,4767.2,4767.1,0.041]
[1756018685607,3.96528842,4767.2,4767.1,0.041]
[1756018685930,7.49628842,4767.2,4767.1,0.041]
[1756018686118,9.59395581,4767.2,4767.1,0.041]
[1756018686493,3.96528842,4767.2,4767.1,0.041]
[1756018686729,7.49628842,4767.2,4767.1,0.041]
[1756018687203,3.96528842,4767.2,4767.1,0.041]
[1756018687402,7.49628842,4767.2,4767.1,0.041]
[1756018687609,7.41219542,4767.2,4767.1,0.041]
[1756018687807,0.88119542,4767.2,4767.1,0.041]
[1756018688101,14.76083102,4767.2,4767.1,0.041]
[1756018688306,15.50029869,4767.2,4767.1,0.041]
[1756018688635,20.42138725,4767.2,4767.1,0.041]
[1756018688925,20.50548125,4767.2,4767.1,0.041]
[1756018689100,20.17716586,4767.2,4767.1,0.041]
[1756018690231,19.88626586,4767.2,4767.1,0.041]
[1756018690932,16.35526586,4767.2,4767.1,0.041]
[1756018691305,19.88626586,4767.2,4767.1,0.041]
[1756018691508,19.88626586,4767.2,4766.6,0.001]
[1756018691721,8.23204824,4766.2,4766.1,0.041]
[1756018691921,16.32142341,4766.2,4766.1,0.041]
[1756018692137,16.78842341,4766.2,4766.1,0.041]
[1756018692351,13.25442341,4766.2,4766.1,0.041]
[1756018692550,2.16636767,4766.2,4766.1,0.041]
[1756018692718,5.2518,4766.2,4766.1,0.041]
[1756018693352,10.41684824,4766.2,4766.1,0.041]
[1756018693657,13.95084824,4766.2,4766.1,0.041]
[1756018694152,14.24174824,4766.2,4766.1,0.041]
[1756018694366,13.95084824,4766.2,4766.1,0.041]
[1756018694522,13.48384824,4766.2,4766.1,0.041]
[1756018695520,13.95084824,4766.2,4766.1,0.041]
[1756018695944,14.24174824,4766.2,4766.1,0.041]
[1756018697323,16.33985574,4766.2,4766.1,0.041]
[1756018697519,18.22488017,4766.2,4766.1,0.041]
[1756018697847,18.6730674,4766.2,4766.1,0.041]
[1756018698158,21.6730674,4766.2,4766.1,0.041]
[1756018699924,18.1390674,4766.2,4766.1,0.041]
[1756018700124,21.6710674,4766.2,4766.1,0.041]
[1756018702357,22.08355651,4766.2,4766.1,0.041]
[1756018702542,22.08255651,4766.2,4766.1,0.041]
[1756018703273,16.16254901,4766.2,4766.1,0.041]
[1756018703426,19.22554901,4766.2,4766.1,0.041]
[1756018703622,15.16325078,4766.2,4766.1,0.041]
[1756018703827,18.90633385,4766.2,4766.1,0.041]
[1756018704329,19.36783385,4766.2,4766.1,0.041]
[1756018704552,16.28562675,4766.2,4766.1,0.041]
[1756018704756,17.71751925,4766.2,4766.1,0.041]
[1756018705900,19.81562675,4766.2,4766.1,0.041]
[1756018706389,14.18751925,4766.2,4766.1,0.041]
[1756018706591,2.04617811,4766.2,4766.1,0.041]
[1756018706791,5.57517811,4766.2,4766.1,0.041]
[1756018708289,2.04617811,4766.2,4766.1,0.041]
[1756018708656,2.04617811,4766.2,4766.1,2.35507132]
[1756018708986,5.2468,4766.2,4766.1,2.35507132]
[1756018710059,5.2468,4766.2,4766.1,0.2569198]
[1756018711065,5.2468,4766.2,4766.1,2.35507132]
[1756018711379,1.7178,4766.2,4766.1,2.35507132]
[1756018711564,5.2468,4766.2,4766.1,2.35507132]
[1756018712472,3.529,4766.2,4766.1,2.35507132]
[1756018713062,0.1048,4766.7,4766.6,2.09793143]
[1756018713269,3.529,4766.7,4766.6,2.5175245]
[1756018714096,1.7188,4766.9,4766.6,2.5175245]
[1756018714299,1.7188,4766.9,4766.8,2.09784341]
[1756018714509,0.002,4767.1,4767.0,2.0977554]
[1756018715119,0.002,4767.1,4767.0,2.2025554]
[1756018716186,0.002,4767.1,4767.0,1.9525554]
[1756018716389,0.002,4767.6,4767.5,2.09753539]
[1756018716612,0.002,4767.6,4767.5,2.5170494]
[1756018716786,0.002,4767.6,4767.5,10.85389764]
[1756018718117,0.002,4767.6,4767.5,13.85389764]
[1756018721203,0.002,4767.6,4767.5,5.6218494]
[1756018721397,0.002,4767.6,4767.5,13.85389764]
[1756018726133,0.002,4767.6,4767.5,5.6218494]
[1756018729123,0.002,4767.6,4767.5,9.1468494]
[1756018730157,0.002,4767.6,4767.5,5.6218494]
[1756018730315,0.002,4767.6,4767.5,9.1458494]
[1756018732834,0.002,4768.1,4768.0,2.09731543]
[1756018733037,0.002,4768.1,4768.0,17.57183343]
[1756018733260,0.002,4768.1,4768.0,17.67663343]
[1756018733643,0.002,4768.1,4768.0,17.77915849]
[1756018733972,0.002,4768.3,4768.2,2.09722746]
[1756018734122,0.002,4768.3,4768.2,8.62022746]
[1756018734327,0.002,4768.3,4768.2,10.76210546]
[1756018736135,0.002,4768.3,4768.2,11.42210546]
[1756018737424,1e-08,4768.3,4768.2,11.42210546]
[1756018741832,1e-08,4768.3,4768.2,15.67210546]
[1756018742150,1e-08,4768.6,4768.5,5.75709552]
[1756018742453,1e-08,4768.6,4768.5,23.85089549]
[1756018742956,0.002,4769.3,4769.2,2.75678772]
[1756018743157,0.002,4769.3,4769.2,17.50783596]
[1756018743368,0.002,4769.3,4769.2,17.61263596]
[1756018743538,0.04,4769.4,4769.2,17.61263596]
[1756018743539,0.04,4769.4,4769.3,5.75674375]
[1756018743734,0.04,4769.4,4769.3,7.11420057]
[1756018743939,0.505,4770.4,4769.7,5.75656791]
[1756018744140,0.505,4770.4,4769.7,17.50761615]
[1756018744470,0.505,4770.4,4769.7,17.61241615]
[1756018744705,0.042,4770.4,4769.7,17.61241615]
[1756018744904,0.463,4770.2,4769.7,17.61241615]
[1756018745276,0.483,4769.8,4769.7,17.61241615]
[1756018745471,0.7941,4769.8,4769.7,6.58083767]
[1756018745680,0.7941,4769.8,4769.7,9.44083767]
[1756018745906,0.7941,4769.8,4769.7,8.72136791]
[1756018748507,0.7941,4769.8,4769.7,2.20136791]
[1756018748661,0.7941,4769.8,4769.7,0.1048]
[1756018748862,0.7941,4769.8,4769.6,2.09657206]
[1756018749058,0.3311,4769.8,4769.7,2.09656791]
[1756018749916,0.7941,4769.8,4769.6,2.09660316]
[1756018750298,0.463,4769.7,4769.6,2.09660316]
[1756018750501,0.7741,4769.7,4769.6,2.09660316]
[1756018751539,0.7741,4769.7,4769.5,0.1048]
[1756018751540,0.7741,4769.7,4769.5,2.20144718]
[1756018751732,0.3111,4769.7,4769.6,2.09661187]
[1756018752104,0.3111,4769.7,4769.5,0.1048]
[1756018752308,0.3111,4769.7,4769.3,2.09670549]
[1756018752610,0.463,4769.6,4769.3,0.1048]
[1756018752816,0.3111,4769.4,4769.3,0.1048]
[1756018753015,0.3111,4769.4,4768.8,2.09692552]
[1756018753190,0.463,4769.3,4768.7,2.2018045]
[1756018753395,0.3111,4768.8,4768.7,2.2018045]
[1756018753812,0.7741,4768.8,4768.7,2.2018045]
[1756018759192,0.7611,4768.8,4768.7,2.2018045]
[1756018760808,0.4366,4769.2,4768.9,2.096898]
[1756018761124,0.4366,4768.8,4768.7,7.32250093]
[1756018761325,0.4366,4768.8,4768.7,7.21770093]
[1756018761503,0.7347,4768.8,4768.7,7.32250093]
[1756018761702,0.7347,4768.8,4768.7,5.71780757]
[1756018762114,0.7347,4768.8,4768.7,5.71880757]
[1756018763217,0.7347,4768.8,4768.7,2.20180757]
[1756018765094,0.7347,4768.8,4768.7,0.1048]
[1756018765698,0.7347,4768.8,4768.2,0.001]
[1756018765901,0.4366,4768.7,4768.2,0.001]
[1756018766212,0.2981,4768.3,4768.2,2.09822746]
[1756018766416,0.7347,4768.3,4768.2,2.09822746]
[1756018767537,0.7347,4768.3,4768.2,0.001]
[1756018767949,0.7347,4768.3,4768.2,2.09822746]
[1756018772411,0.7347,4768.3,4768.2,0.001]
[1756018775355,0.7347,4768.3,4768.2,2.09822746]
[1756018776957,0.7347,4768.3,4768.2,0.001]
[1756018777450,0.7347,4768.3,4768.2,2.09822746]
[1756018777830,0.7347,4768.3,4768.2,0.001]
[1756018778240,0.7347,4768.3,4768.2,2.09822746]
[1756018778663,0.7347,4768.3,4768.2,0.001]
[1756018779554,0.7347,4768.3,4768.2,2.09822746]
[1756018779765,0.7347,4768.3,4768.2,0.001]
[1756018780269,0.8395,4768.3,4768.2,0.001]
[1756018780441,1.13315195,4768.3,4768.2,0.001]
[1756018781242,0.8395,4768.3,4768.2,0.001]
[1756018783762,0.923553,4768.3,4768.2,0.001]
[1756018787755,0.1048,4768.3,4768.2,0.001]
[1756018788343,0.95858199,4768.7,4768.2,2.09822746]
[1756018788344,0.32818699,4768.7,4768.2,2.09822746]
[1756018788563,0.4366,4768.6,4768.2,2.09822746]
[1756018788763,0.4576,4768.5,4768.2,1.40403884]
[1756018788963,0.4576,4768.5,4768.2,0.001]
[1756018789171,0.4576,4768.4,4768.2,0.001]
[1756018789876,0.4576,4768.3,4768.2,0.001]
[1756018790442,0.4576,4768.3,4768.2,2.09822746]
[1756018791071,0.43298699,4768.7,4768.3,2.09717904]
[1756018791275,0.4576,4768.6,4768.4,2.09713256]
[1756018791479,0.43298699,4768.7,4768.3,2.09717586]
[1756018791779,0.4576,4768.6,4768.3,2.09716653]
[1756018792553,0.4576,4768.6,4768.2,0.001]
[1756018792754,0.43298699,4768.7,4768.5,2.09709552]
[1756018792961,0.43298699,4768.7,4768.4,2.09713743]
[1756018793162,0.89058699,4768.7,4768.4,2.09713743]
[1756018793562,0.4576,4768.6,4768.3,2.09717678]
[1756018794069,0.4576,4768.5,4768.3,2.09717678]
[1756018795484,0.4576,4768.5,4768.2,2.09821977]
[1756018795649,0.4576,4768.5,4768.3,2.09718263]
[1756018797490,0.43298699,4768.7,4768.3,2.09718263]
[1756018797677,0.4576,4768.4,4768.2,2.0982213]
[1756018797856,0.4576,4768.4,4768.3,2.09718348]
[1756018798259,0.4576,4768.4,4768.2,0.001]
[1756018798484,0.43298699,4768.7,4768.2,0.001]
[1756018798677,0.4576,4768.3,4768.2,0.001]
[1756018798875,0.43298699,4768.7,4768.2,0.001]
[1756018799094,0.4576,4768.6,4768.2,0.001]
[1756018799700,0.3075,4768.3,4768.2,0.001]
[1756018800101,0.3075,4768.3,4768.2,2.09822746]
[1756018800259,0.7651,4768.3,4768.2,0.001]
[1756018801487,0.8699,4768.3,4768.2,0.001]
[1756018803291,4.466955,4768.3,4768.2,0.001]
[1756018804500,5.28465685,4768.3,4768.2,0.001]
[1756018805687,7.38184033,4768.3,4768.2,0.001]
[1756018806022,5.28465685,4768.3,4768.2,0.001]
[1756018809288,3.701855,4768.3,4768.2,0.001]
[1756018809725,0.1048,4768.3,4768.2,2.09822746]
[1756018809940,0.4576,4769.3,4768.2,2.09822746]
[1756018809941,3.9706,4769.1,4768.4,2.09711134]
[1756018810096,0.1548,4769.0,4768.6,2.09702299]
[1756018810302,0.1548,4769.0,4768.7,2.09699569]
[1756018810517,0.1548,4769.0,4768.8,2.09696229]
[1756018810825,0.1548,4769.0,4768.7,2.09696434]
[1756018811039,0.1548,4769.0,4768.7,3.11531013]
[1756018811232,0.1548,4769.0,4768.7,2.09696434]
[1756018811415,0.1548,4769.0,4768.8,2.09695444]
[1756018812301,0.1548,4769.0,4768.3,0.1048]
[1756018812636,0.4576,4768.9,4768.5,2.09708631]
[1756018812808,0.4576,4768.8,4768.5,2.09708631]
[1756018813135,0.4576,4768.8,4768.6,2.31733591]
[1756018814153,0.05,4769.0,4768.9,2.09691962]
[1756018814817,0.05,4769.0,4768.9,5.60991962]
[1756018815019,0.05,4769.0,4768.9,5.71471962]
[1756018815210,0.05,4769.0,4768.9,8.00112603]
[1756018815824,0.05,4769.0,4768.9,11.00112603]
[1756018816142,0.002,4769.4,4769.3,5.75674375]
[1756018816305,0.002,4769.4,4769.3,5.86154375]
[1756018816910,0.002,4769.4,4769.3,5.20154375]
[1756018817111,0.002,4769.4,4769.3,7.34342175]
[1756018818044,0.002,4769.4,4769.3,8.00342175]
[1756018819826,0.002,4769.4,4769.3,11.51542175]
[1756018820978,0.002,4769.4,4769.3,63.12842175]
[1756018822934,1e-08,4769.4,4769.3,63.12842175]
[1756018823191,1e-08,4769.4,4769.3,59.61642175]
[1756018823330,1e-08,4769.4,4769.3,67.84846999]
[1756018823531,1e-08,4769.4,4769.3,71.36046999]
[1756018823880,0.73550001,4769.4,4769.3,52.20154375]
[1756018824170,0.73550001,4769.4,4769.3,50.1048]
[1756018824375,0.73550001,4769.4,4769.3,50.0]
[1756018824668,4.24540329,4769.4,4769.3,50.0]
[1756018824849,4.35020329,4769.4,4769.3,50.0]
[1756018825850,4.98046429,4769.4,4769.3,50.0]
[1756018826451,1.46846429,4769.4,4769.3,50.0]
[1756018826651,4.98046429,4769.4,4769.3,50.0]
[1756018828377,4.98046429,4769.4,4769.3,52.09674375]
[1756018828550,4.676661,4769.4,4769.3,52.09674375]
[1756018828768,4.876761,4769.4,4769.3,52.09674375]
[1756018828948,4.876761,4769.4,4769.3,50.0]
[1756018829469,4.876761,4769.4,4769.3,52.09674375]
[1756018829873,1.365761,4769.4,4769.3,52.09674375]
[1756018830178,0.4306,4769.4,4769.3,54.23862175]
[1756018830343,0.1048,4769.6,4769.5,2.09665583]
[1756018831473,7.0,4769.7,4769.6,2.09661187]
[1756018832266,7.4306,4769.7,4769.6,2.09661187]
[1756018832763,7.7355,4769.7,4769.6,2.09661187]
[1756018832951,7.7355,4769.7,4769.6,4.23848987]
[1756018834673,7.4306,4769.7,4769.6,4.23848987]
[1756018834878,7.0,4769.7,4769.6,4.23848987]
[1756018835085,7.0,4769.7,4769.6,7.74948987]
[1756018837664,7.7355,4769.7,4769.6,7.74948987]
[1756018837962,7.7355,4769.7,4769.6,2.09661187]
[1756018838857,7.7375,4769.7,4769.6,2.09661187]
[1756018839358,7.7375,4769.7,4769.5,0.1048]
[1756018839554,0.4306,4769.6,4769.5,0.1048]
[1756018839790,0.7355,4769.6,4769.5,2.20143854]
[1756018840576,4.2465,4769.6,4769.5,2.20143854]
[1756018842619,0.7355,4769.6,4769.5,2.20143854]
[1756018842990,7.002,4769.7,4769.5,2.20143854]
[1756018843194,7.002,4769.7,4769.6,2.09661187]
[1756018843707,7.002,4769.7,4769.6,5.60761187]
[1756018844994,7.002,4769.7,4769.6,6.38851691]
[1756018847220,7.3069,4769.7,4769.6,6.38851691]
[1756018847408,7.7375,4769.7,4769.6,5.60761187]
[1756018847596,7.7375,4769.7,4769.6,2.09661187]
[1756018850845,7.7375,4769.7,4769.5,5.71244616]
[1756018851007,7.3069,4769.7,4769.5,2.09664616]
[1756018851214,0.4658,4769.6,4769.5,2.09664616]
[1756018851414,1.405459,4769.6,4769.5,2.09664616]
[1756018852145,1.405459,4769.6,4769.5,5.60764616]
[1756018853441,0.630159,4769.6,4769.5,6.38856436]
[1756018853738,7.002,4769.7,4769.6,2.09661187]
[1756018854553,7.7773,4769.7,4769.6,5.60761187]
[1756018855062,7.7773,4769.7,4769.6,2.09661187]
[1756018855265,7.7773,4769.7,4769.6,5.60761187]
[1756018855827,7.7773,4769.7,4769.6,2.09661187]
[1756018856049,7.7773,4769.7,4769.6,5.60761187]
[1756018857147,7.7773,4769.7,4769.6,2.09661187]
[1756018857348,7.7773,4769.7,4769.6,5.60761187]
[1756018861957,7.4678,4769.7,4769.6,5.60761187]
[1756018862155,7.002,4769.7,4769.6,5.60761187]
[1756018862331,7.002,4769.7,4769.6,7.04862203]
[1756018862541,7.002,4769.7,4769.6,10.15342203]
[1756018864454,3.59900967,4769.7,4769.6,10.15342203]
[1756018864639,1e-08,4769.7,4769.6,10.15342203]
[1756018865887,1e-08,4769.9,4769.8,0.66]
[1756018866087,1e-08,4769.9,4769.8,21.2524502]
[1756018868167,0.002,4771.3,4771.2,2.09590878]
[1756018868470,0.002,4771.3,4771.2,6.81270878]
[1756018868649,0.7773,4771.3,4771.2,10.32270878]
[1756018868850,0.7773,4771.3,4771.2,7.32270878]
[1756018869580,0.4678,4771.3,4771.2,7.32270878]
[1756018869768,0.7773,4771.3,4771.2,7.32270878]
[1756018869969,0.7773,4771.3,4771.2,7.33170878]
[1756018871855,0.7773,4771.3,4771.2,3.87270878]
[1756018872058,0.7773,4771.3,4771.2,0.06]
[1756018876257,0.7773,4771.3,4771.2,2.15590878]
[1756018876566,0.7773,4771.3,4771.2,0.06]
[1756018877892,0.7773,4771.3,4771.2,50.06]
[1756018882186,0.8821,4771.3,4771.2,50.06]
[1756018882586,0.8821,4771.3,4771.2,52.15590878]
[1756018882587,0.1068,4771.3,4771.2,52.15590878]
[1756018882797,0.1068,4771.3,4771.2,54.29778678]
[1756018883009,0.002,4771.3,4771.2,54.40258678]
[1756018883230,0.4458,4771.3,4771.2,54.40258678]
[1756018883706,0.7498,4771.3,4771.2,54.40258678]
[1756018883896,0.7498,4771.3,4771.2,50.06]
[1756018884120,0.7498,4771.3,4771.2,52.15590878]
[1756018884505,0.4458,4771.3,4771.2,52.15590878]
[1756018884835,0.002,4771.3,4771.2,52.15590878]
[1756018886232,0.4458,4771.3,4771.2,52.15590878]
[1756018886601,0.7498,4771.3,4771.2,52.15590878]
[1756018887898,0.7498,4771.3,4771.2,50.06]
[1756018898236,0.002,4771.3,4771.2,53.58]
[1756018898436,0.306,4771.3,4771.2,50.1648]
[1756018898648,0.7498,4771.3,4771.2,50.06]
[1756018899941,0.002,4771.3,4771.2,53.585]
[1756018900162,0.002,4771.3,4771.2,55.68090878]
[1756018900474,0.002,4771.3,4771.2,57.92758678]
[1756018901061,0.002,4771.3,4771.2,55.831678]
[1756018901369,0.002,4771.3,4771.2,53.6898]
[1756018902142,0.1268,4771.8,4771.3,0.66]
[1756018902343,0.022,4771.8,4771.7,14.0925374]
[1756018902546,0.022,4771.8,4771.7,17.6345374]
[1756018903245,0.022,4771.8,4771.7,14.0925374]
[1756018903437,0.022,4771.8,4771.7,19.30910893]
[1756018906944,0.1048,4773.6,4773.5,2.75489892]
[1756018907275,0.1048,4773.6,4773.5,10.92089892]
[1756018907485,0.04,4774.4,4773.7,5.75481115]
[1756018907660,0.4438,4774.1,4773.7,9.30981115]
[1756018907839,0.4858,4773.8,4773.7,11.45068915]
[1756018909660,0.7903,4773.8,4773.7,3.553]
[1756018910656,0.7903,4773.8,4773.6,3.553]
[1756018910978,0.4386,4773.7,4773.6,3.553]
[1756018911140,0.7431,4773.7,4773.6,3.553]
[1756018911344,0.7431,4773.7,4773.5,3.554]
[1756018911576,0.4386,4773.6,4773.5,3.554]
[1756018911780,0.7431,4773.6,4773.5,3.554]
[1756018913776,0.042,4773.8,4773.5,3.554]
[1756018913977,0.042,4773.8,4773.6,0.39721488]
[1756018914157,0.042,4773.8,4773.5,3.554]
[1756018914158,0.042,4773.8,4773.7,3.551]
[1756018914474,0.042,4773.8,4773.7,5.64581115]
[1756018914684,0.4806,4773.8,4773.7,3.551]
[1756018914983,0.7851,4773.8,4773.7,3.551]
[1756018916302,0.7851,4773.8,4773.7,5.64581115]
[1756018916464,0.042,4773.8,4773.7,6.22087227]
[1756018916658,0.042,4773.8,4773.7,6.98567227]
[1756018917611,0.042,4773.8,4773.7,3.43467227]
[1756018917798,0.042,4773.8,4773.7,6.98867227]
[1756018918716,0.3465,4773.8,4773.7,2.77467227]
[1756018918919,0.7851,4773.8,4773.7,6.32867227]
[1756018919413,0.7851,4773.8,4773.7,6.32767227]
[1756018919914,0.7851,4773.8,4773.7,2.77467227]
[1756018920212,0.7851,4773.8,4773.7,6.32767227]
[1756018920915,0.042,4773.8,4773.7,6.32767227]
[1756018922217,0.4806,4773.8,4773.7,6.32767227]
[1756018923087,0.042,4773.8,4773.7,6.32767227]
[1756018923289,0.042,4773.8,4773.7,6.98767227]
[1756018928622,0.7851,4773.8,4773.7,2.77467227]
[1756018928838,0.7851,4773.8,4773.7,4.23286112]
[1756018929022,0.042,4773.8,4773.7,5.75261115]
[1756018929322,0.7851,4773.8,4773.7,3.6578]
[1756018931325,0.7851,4773.8,4773.7,5.75261115]
[1756018931525,0.7851,4773.8,4773.7,3.6578]
[1756018931726,0.7851,4773.8,4773.7,5.75261115]
[1756018931931,0.7851,4773.8,4773.7,3.6578]
[1756018932825,0.7851,4773.8,4773.7,0.1048]
[1756018933020,0.7851,4773.8,4773.5,3.551]
[1756018933220,0.4386,4773.7,4773.2,3.6558]
[1756018933447,0.3045,4773.3,4773.2,3.6558]
[1756018933618,0.7431,4773.3,4773.2,4.74049884]
[1756018934236,0.7431,4773.3,4773.2,3.28452942]
[1756018934436,0.7431,4773.3,4773.2,0.1048]
[1756018934948,0.7431,4773.3,4772.9,0.1058]
[1756018935122,0.4386,4773.2,4773.0,2.09510982]
[1756018935322,0.3045,4773.1,4773.0,2.09511837]
[1756018935518,0.3045,4773.1,4773.0,5.64511837]
[1756018935722,0.7431,4773.1,4773.0,5.64511837]
[1756018936117,0.7431,4773.1,4773.0,3.549]
[1756018936348,0.7431,4773.1,4773.0,5.64411837]
[1756018937128,0.1048,4773.7,4773.1,2.09504668]
[1756018937327,0.3045,4773.1,4773.0,5.6441096]
[1756018937716,0.7431,4773.1,4773.0,5.6441096]
[1756018940731,0.7431,4773.1,4773.0,2.0951096]
[1756018940930,0.7431,4773.1,4773.0,5.6411096]
[1756018941131,0.4386,4773.1,4773.0,5.6411096]
[1756018941351,0.4386,4773.1,4773.0,5.6421096]
[1756018944058,0.7328,4773.1,4773.0,5.6421096]
[1756018946183,0.042,4773.8,4773.0,5.6421096]
[1756018946184,0.042,4773.8,4773.7,2.75481115]
[1756018946489,0.042,4773.8,4773.7,9.35881115]